Cogmind - Beta 15 @@@ ROGUE MODE // 2025.08.30 @ 17:56:01 Player: beans Result: Destroyed by 4P-9PQ(j) with Overtuned Pulse Rifle Performance ------------- Evolutions (0) 0 Regions Visited (4) 800 Robots Destroyed (27) 135 Value Destroyed (956) 956 Prototype IDs (24) 480 Alien Tech Used (0) 0 Bonus (967) 967 TOTAL SCORE: 3338 Bonus ------- Follower Combat Kills 225 Registered with UFD 300 Met Optimus in HQ 500 Friendly Fire -58 Cogmind --------- Core Integrity 0/250 Matter 35/300 Energy 310/310 System Corruption 0% Temperature Cool (12) Movement Core (250) Ox4 Location -8/Scraptown Parts ------- > --- POWER (1) -------- Fission Core > --- PROPULSION (2) --- (None) > --- UTILITY (2) ------ A0-MCA's Component Scanner > --- WEAPON (2) ------- Axe > --- INVENTORY (5) ---- Hacking Suite Large Botcube Peak State ------------ > --- POWER ------------ Light Angular Momentum Engine > --- PROPULSION ------- Light Treads Light Treads > --- UTILITY ---------- Core Shielding A0-MCA's Component Scanner > --- WEAPON ----------- Phase Cannon Battle Cannon > --- INVENTORY -------- Spectral Analyzer Hacking Suite Makeshift System Shield Battle Cannon Subdweller Shrapnel Launcher [Rating: 26] Favorites ----------- Power Fission Core Engine Light Angular Momentum Engine Power Core Fission Core Propulsion Light Treads Treads Light Treads Utility Core Shielding Device Subdweller Optics Processor A0-MCA's Component Scanner Protection Core Shielding Weapon Battle Cannon Energy Gun Medium Laser Energy Cannon Phase Cannon Ballistic Cannon Battle Cannon Launcher Subdweller Shrapnel Launcher Slashing Weapon Axe Build | -11 -10 -10 -10 -8 ------- Run | Yrd Mat Min Sub Scr Slots Evolved . | . . . . . Power . | . . . . . Propulsion . | . . . . . Utility . | . . . . . Weapon . | . . . . . Parts Attached 18 | 5 3 . 3 7 Power 3 | 1 . . . 2 Engine 2 | 1 . . . 1 Core 1 | . . . . 1 Reactor . | . . . . . Propulsion 2 | 2 . . . . Treads 2 | 2 . . . . Leg . | . . . . . Wheel . | . . . . . Hover . | . . . . . Flight . | . . . . . Utility 3 | . 1 . 1 1 Device 1 | . . . 1 . Storage . | . . . . . Processor 1 | . . . . 1 Hackware . | . . . . . Protection 1 | . 1 . . . Artifact . | . . . . . Weapon 10 | 2 2 . 2 4 Energy Gun 2 | 2 . . . . Energy Cannon 1 | . . . . 1 Ballistic Gun . | . . . . . Ballistic Cannon 5 | . 2 . 2 1 Launcher 1 | . . . . 1 Special Weapon . | . . . . . Impact Weapon . | . . . . . Slashing Weapon 1 | . . . . 1 Piercing Weapon . | . . . . . Special Melee Weapon . | . . . . . Unidentified Prototypes . | . . . . . Parts Lost 6 | . . . 1 5 Power 1 | . . . 1 . Propulsion 2 | . . . . 2 Utility 1 | . . . . 1 Weapon 2 | . . . . 2 Highest Loss Streak 2 | . . . 1 2 To Critical Strikes . | . . . . . Average Backups 3 | . 1 2 4 3 Power . | . . . . . Propulsion . | . . . . . Utility 2 | . . 1 1 2 Weapon 1 | . . 1 2 1 Tool/Special . | . . . . . Unused Backups 28 | . . . . 28 Power 3 | . . . . 3 Propulsion 6 | . . . . 6 Utility 9 | . . . . 9 Weapon 10 | . . . . 10 Tool/Special . | . . . . . Average Slot Usage (%) 90 | . 73 85 84 93 Engine 5 | . 14 14 7 4 Core 6 | . . . . 9 Treads 25 | . 28 28 28 25 Device 1 | . . . 5 . Processor 9 | . . . . 12 Protection 13 | . 3 14 14 14 Ballistic Cannon 24 | . 8 28 28 24 Peak Build Rating 26 | 5 6 6 11 26 Average Rating 18 | 3 5 6 8 21 On Entrance 5 | . 5 6 6 8 Naked Turns . | . . . . . Heaviest Build 26 | 8 12 12 14 26 Greatest Support 40 | 40 40 40 40 40 Greatest Overweight (x) 5 | 2 . . . 5 Average Overweight (x) . | . . . . . Largest Inventory Capacity 5 | 5 5 5 5 5 Average Capacity 5 | 5 5 5 5 5 Most Carried 5 | 2 4 2 5 5 Average Carried 3 | . 1 2 4 4 Final Capacity 5 | 5 5 5 5 5 Final Carried 5 | . 2 2 5 3 Class Distribution -------------------- 100% | Mutant Dominant Class ---------------- Mutant | -10/Materials Mutant | -10/Mines Mutant | -10/Subcaves Mutant | -8/Scraptown Resources | -11 -10 -10 -10 -8 ----------- Run | Yrd Mat Min Sub Scr Matter Collected 769 | 182 102 . 328 157 Remotely . | . . . . . Salvage Created 982 | . 320 . 221 441 Parts 61 | . 22 . 15 24 Haulers Intercepted . | . . . . . Recyclers Shooed . | . . . . . Parts Field Recycled . | . . . . . Retrieved Matter . | . . . . . Parts Self-Destructed 11 | . . . 11 . Prevented . | . . . . . Kills | -11 -10 -10 -10 -8 ------- Run | Yrd Mat Min Sub Scr Combat Hostiles Destroyed 23 | . 7 . 8 8 Guns 5 | . 5 . . . Cannons 17 | . 2 . 8 7 AOE 1 | . . . . 1 Classes Destroyed 8 | . 3 . 2 3 Operator 1 | . 1 . . . Watcher 2 | . 2 . . . Swarmer 1 | . . . 1 . Grunt 10 | . 7 . 3 . Subdweller 5 | . . . 5 . Federalist 1 | . . . . 1 Explorer 1 | . . . . 1 Scrapper 6 | . . . . 6 Best Kill Streak 5 | . 5 . 2 3 Combat Bots Only 4 | . 4 . 2 3 Max Kills in Single Turn 2 | . 1 . 2 1 Gunslinging . | . . . . . Exploded 1 | . . . . 1 Melee . | . . . . . Uniques/NPCs Destroyed . | . . . . . Combat | -11 -10 -10 -10 -8 -------- Run | Yrd Mat Min Sub Scr Hostile Shots Fired 133 | . 30 . 50 53 Missed 52 | . 13 . 18 21 Hits 81 | . 17 . 32 32 Projectile 81 | . 17 . 32 32 Damage Taken 1220 | . 184 . 517 519 Core 261 | . 32 . 41 188 Absorbed by Shields . | . . . . . Redirected to Shielding 50 | . . . 8 42 Core Remaining (%) 100 | 100 . . . . Volleys Fired 91 | . 25 . 31 35 Largest 2 | . 2 . 2 2 Hottest 90 | . 90 . 66 80 Shots Fired 153 | . 50 . 57 46 Gun 36 | . 36 . . . Cannon 113 | . 14 . 57 42 Launcher 4 | . . . . 4 Special . | . . . . . Kinetic 117 | . 14 . 57 46 Thermal 36 | . 36 . . . Explosive . | . . . . . Electromagnetic . | . . . . . Robot Hit Streak 12 | . 6 . 12 10 Robot Miss Streak 5 | . 5 . 2 3 Penetration Max 1 | . . . . 1 Secondary Targets 2 | . 2 . . . Max Gunslinging Chain 1 | . 1 . . . Shots Hit Robots 89 | . 32 . 36 21 Core Hits 41 | . 17 . 14 10 Critical Kills . | . . . . . Critical Parts Destroyed . | . . . . . Critical Strikes 7 | . 2 . 2 3 Burn 2 | . 2 . . . Blast 5 | . . . 2 3 Melee Attacks 3 | . . . . 3 Impact . | . . . . . Slashing 3 | . . . . 3 Piercing . | . . . . . Sneak Attacks . | . . . . . Combat Hostiles . | . . . . . Follow-up Attacks . | . . . . . Damage Inflicted 1923 | . 443 . 746 734 Guns 275 | . 275 . . . Cannons 1488 | . 168 . 746 574 Explosions 160 | . . . . 160 Melee . | . . . . . Ramming . | . . . . . Kinetic 1648 | . 168 . 746 734 Thermal 275 | . 275 . . . Explosive . | . . . . . Electromagnetic . | . . . . . Impact . | . . . . . Slashing . | . . . . . Piercing . | . . . . . Highest Corruption . | . . . . . Average Corruption . | . . . . . Corruption Purged . | . . . . . Corruption Blocked . | . . . . . Overload Shots . | . . . . . Overflow Damage 11 | . . . 11 . Projectiles 11 | . . . 11 . Explosions . | . . . . . Melee . | . . . . . Knockbacks 12 | . 2 . 5 5 Impact . | . . . . . Kinetic 11 | . 2 . 4 5 Secondary 1 | . . . 1 . Self-Inflicted Damage 83 | . . . . 83 Shots 2 | . . . . 2 Rammed . | . . . . . Targets Rammed . | . . . . . Kicked . | . . . . . Crushed . | . . . . . Highest Temperature 180 | . 180 . . 162 Average Temperature 54 | . 75 . . 36 Received Heat Transfer 423 | . 102 . 111 210 Siege Activations . | . . . . . Martial Activations . | . . . . . Shielding Activations . | . . . . . Robots Disrupted . | . . . . . Combat Hostiles . | . . . . . Robots Corrupted . | . . . . . Combat Hostiles . | . . . . . Parts Fried . | . . . . . Impact Corruptions . | . . . . . Robots Melted . | . . . . . Combat Hostiles . | . . . . . Parts Melted . | . . . . . Heat Transferred 867 | . 867 . . . Parts Sabotaged . | . . . . . Parts Stolen . | . . . . . Parts Stripped . | . . . . . Power Chain Reactions . | . . . . . Alert | -11 -10 -10 -10 -8 ------- Run | Yrd Mat Min Sub Scr Maximum Alert Level . | . . . . . Low Security (%) 100 | 100 100 100 . . Level 1 . | . . . . . Level 2 . | . . . . . Level 3 . | . . . . . Level 4 . | . . . . . Level 5 . | . . . . . High Security . | . . . . . Max Security . | . . . . . Peak Influence 120 | . 120 36 . . Initial 36 | . . 36 . . Average 32 | . 46 11 . . Influence Increases 392 | . 204 . 188 . Destroy 0b10 Robot/C 260 | . 140 . 120 . Destroy 0b10 Robot/NC 15 | . 15 . . . Destroy Leader 44 | . 34 . 10 . Allied During Kill 13 | . . . 13 . Lose Combat Pursuer 60 | . 15 . 45 . Influence Decreases 392 | . 110 94 188 . Entered New Map 58 | . . 58 . . Time Decay 314 | . 110 36 168 . Lost Ally 20 | . . . 20 . Squads Dispatched 2 | . 2 . . . Investigation 1 | . 1 . . . Extermination . | . . . . . Reinforcement 1 | . 1 . . . Assault . | . . . . . Garrison . | . . . . . Intercept . | . . . . . Searches Triggered . | . . . . . Construction Impeded . | . . . . . Haulers Reinforced . | . . . . . Active Scanning Responses . | . . . . . Cargo Convoy Interrupts . | . . . . . Stealth | -11 -10 -10 -10 -8 --------- Run | Yrd Mat Min Sub Scr Distress Signals . | . . . . . Communications Jammed . | . . . . . Distress Signals . | . . . . . Times Spotted 44 | . 13 . 12 19 Peak Tracking Total 6 | . 2 . 6 3 Tactical Retreats 2 | . 1 . 1 . Traps | -11 -10 -10 -10 -8 ------- Run | Yrd Mat Min Sub Scr Traps Triggered 2 | . 1 . 1 . Indirectly . | . . . . . Trap Hack Attempts . | . . . . . Triggered . | . . . . . Disarmed . | . . . . . Reprogrammed . | . . . . . Reused . | . . . . . Traps Extracted . | . . . . . Installed . | . . . . . Triggered . | . . . . . Machines | -11 -10 -10 -10 -8 ---------- Run | Yrd Mat Min Sub Scr Machines Disabled 7 | . . . . 7 Max in Single Turn 3 | . . . . 3 Machines Repaired . | . . . . . Machines Dismantled . | . . . . . Machines Sabotaged . | . . . . . Overloaded Fab Kills . | . . . . . Hacking | -11 -10 -10 -10 -8 --------- Run | Yrd Mat Min Sub Scr Machines Accessed 3 | . . 1 1 1 Terminals 1 | . . 1 . . Fabricators . | . . . . . Repair Stations . | . . . . . Recycling Units . | . . . . . Scanalyzers . | . . . . . Garrison Access . | . . . . . Total Hacks 17 | . . 2 9 6 Successful 16 | . . 1 9 6 Failed 1 | . . 1 . . Catastrophic . | . . . . . Database Lockouts . | . . . . . Manual . | . . . . . Terminals 2 | . . 2 . . Fabricators . | . . . . . Repair Stations . | . . . . . Recycling Units . | . . . . . Scanalyzers . | . . . . . Garrison Access . | . . . . . Terminal Hacks 16 | . . 1 9 6 Record 9 | . . 1 8 . Robot Analysis 6 | . . . . 6 Proto ID Catalog 1 | . . . 1 . Fabricator Hacks . | . . . . . Repair Station Hacks . | . . . . . Recycling Unit Hacks . | . . . . . Scanalyzer . | . . . . . Garrison Access Hacks . | . . . . . Unauthorized Hacks . | . . . . . Terminals . | . . . . . Fabricators . | . . . . . Repair Stations . | . . . . . Recycling Units . | . . . . . Scanalyzers . | . . . . . Garrison Access . | . . . . . Data Cores Recovered . | . . . . . Used . | . . . . . Hacking Detections 1 | . . 1 . . Full Trace Events . | . . . . . Feedback Events . | . . . . . Feedback Blocked . | . . . . . Robot Schematics Acquired . | . . . . . Robots Built . | . . . . . Authchips . | . . . . . Time . | . . . . . Total Robot Build Rating . | . . . . . Part Schematics Acquired . | . . . . . Parts Built . | . . . . . Authchips . | . . . . . Time . | . . . . . Total Part Build Rating . | . . . . . Parts Repaired . | . . . . . Time . | . . . . . Parts Recycled . | . . . . . Recycled Matter . | . . . . . Retrieved Matter . | . . . . . Retrieved Components . | . . . . . Parts Scanalyzed . | . . . . . Part Schematics Acquired . | . . . . . Parts Damaged . | . . . . . Bothacking | -11 -10 -10 -10 -8 ------------ Run | Yrd Mat Min Sub Scr Used RIF Installer . | . . . . . Robots Hacked . | . . . . . Non-combat . | . . . . . Combat . | . . . . . Robot Hacks Applied . | . . . . . Relay Couplers Released . | . . . . . Fabnet Peak Effective % . | . . . . . Robots Rewired . | . . . . . Allies Hacked . | . . . . . Hacks Repelled . | . . . . . Allies | -11 -10 -10 -10 -8 -------- Run | Yrd Mat Min Sub Scr Total Allies 7 | . . 3 . 4 Largest Group 3 | . . 3 3 1 Highest-Rated Group 64 | . . 40 40 64 Highest-Rated Ally 64 | . . 16 16 64 Total Orders 5 | . . . 1 4 STAY 2 | . . . . 2 FOLLOW 3 | . . . 1 2 Ally Attacks 28 | . . . 21 7 Total Damage 591 | . . . 204 387 Kills 10 | . . . 4 6 Allies Corrupted . | . . . . . Allies Melted 8 | . . . . 8 Intel | -11 -10 -10 -10 -8 ------- Run | Yrd Mat Min Sub Scr Active Infowar (turns) 488 | . . . 488 . Optics 488 | . . . 488 . Robot Analysis Total 6 | . . . . 6 Derelict Logs Recovered 2 | . . . 2 . Drone Launches . | . . . . . Drone Recoveries . | . . . . . Exploration | -11 -10 -10 -10 -8 ------------- Run | Yrd Mat Min Sub Scr Turns Passed 6852 | 44 337 146 1188 5137 Spaces Moved 3672 | 30 157 75 664 2746 Core 158 | 17 . . . 141 Treads 3514 | 13 157 75 664 2605 Legs . | . . . . . Wheels . | . . . . . Hover . | . . . . . Flight . | . . . . . Fastest Speed 50 | 50 160 160 160 160 Average Speed 163 | 117 160 160 160 165 Slowest Speed 300 | 160 160 160 160 300 Overloaded Moves . | . . . . . Propulsion Burnouts . | . . . . . Robots Hopped . | . . . . . Potential Cave-ins . | . . . . . Cave-ins Triggered . | . . . . . Exploration Rate (%) 35 | 4 28 26 30 89 Regions Visited 4 Branch Regions 3 Pre-discovered Areas 1 | . . . 1 . Known Exits Taken . | . . . . . Unknown Exits Taken 4 | 1 1 1 1 . Scrap Searched 24 | . . . 13 11 Spaces Dug . | . . . . . Terrain Destroyed 36 | . . . . 36 Melee . | . . . . . Projectile 6 | . . . . 6 AOE 30 | . . . . 30 Terrain Rammed . | . . . . . Walls Destroyed . | . . . . . Machines Disabled . | . . . . . Actions | -11 -10 -10 -10 -8 --------- Run | Yrd Mat Min Sub Scr Total 4367 | 39 194 101 731 3302 Wait 464 | . 3 27 28 406 Move 3668 | 29 156 74 663 2746 Hop . | . . . . . Pick Up 61 | 5 5 . 3 48 Fast Attach 5 | . . . 2 3 Attach 11 | 5 3 . . 3 Detach . | . . . . . Swap 8 | . . . 1 7 Drop 56 | . 2 . 3 51 Fire 91 | . 25 . 31 35 Melee 3 | . . . . 3 Ram . | . . . . . Kick . | . . . . . Crush . | . . . . . Escape Stasis . | . . . . . Rewire . | . . . . . Trap . | . . . . . Miscellaneous . | . . . . . Route ------- -11/Scrapyard -10/Materials -10/Mines (discovered 2 exits: [*Mat] / *Sub) -10/Subcaves (discovered 2 exits: [*Mat] / *Scr) -8/Scraptown (discovered 1 exit: [*Fac]) History --------- Turn | Location | Event 20 | -11/Scrapyard | Discovered new exit (range 15) 45 | -11/Scrapyard | Entered Materials 320 | -10/Materials | Build established: Mutant 343 | -10/Materials | Discovered new exit (range 16) 382 | -10/Materials | Entered Mines 398 | -10/Mines | Discovered new exit (range 13) 419 | -10/Mines | Assisted by bots powering up and referring to "LRC-V3" 511 | -10/Mines | Discovered new exit (range 4) 528 | -10/Mines | Entered Subcaves 528 | -10/Subcaves | Accompanied by 3 allies 529 | -10/Subcaves | Approached by a straggling Scientist 799 | -10/Subcaves | Learned Materials emergency access door positions 1071 | -10/Subcaves | Shifting Twisted Machinery released Sub. Power Source 1087 | -10/Subcaves | Shifting Twisted Machinery released Sub. Optics 1170 | -10/Subcaves | Discovered new exit (range 5) 1465 | -10/Subcaves | Scientist uncovered a shortcut to Scraptown 1645 | -10/Subcaves | Visited 4L-MR0's lab 1716 | -10/Subcaves | Entered Scraptown 1975 | -8/Scraptown | Visited UFD Registry 1975 | -8/Scraptown | Registered with UFD as "Protonslider" 2023 | -8/Scraptown | Visited Infowarlord's Domain 2037 | -8/Scraptown | Found Spectral Analyzer 2073 | -8/Scraptown | Visited A0-MCA Data Center 2082 | -8/Scraptown | Given a B+ rating by A0-MCA 2091 | -8/Scraptown | Found A0-MCA's Component Scanner 2142 | -8/Scraptown | Visited DA-N13 Charitable Foundation 2148 | -8/Scraptown | Found DCF Scrap (31 items) 2185 | -8/Scraptown | Visited Derelict Rescue Squad 2211 | -8/Scraptown | Visited Science Testing Area 2241 | -8/Scraptown | Visited Analyses Database 2279 | -8/Scraptown | Visited Scrapoid Pod Storage 2311 | -8/Scraptown | Visited Chapter 10 2419 | -8/Scraptown | Visited LU-1G1's Boring Crew 2676 | -8/Scraptown | Visited Botcube Research 2693 | -8/Scraptown | Lrg. Botcube activated 2701 | -8/Scraptown | Lrg. Botcube activated 3378 | -8/Scraptown | Heard Great Nut preacher, LISTEN AND RECITE! 3539 | -8/Scraptown | Discovered new exit (range 13) 3647 | -8/Scraptown | Visited Bundlers 3761 | -8/Scraptown | Visited SPCMW 3782 | -8/Scraptown | Visited The Evicted 3809 | -8/Scraptown | Visited TADAMA 3956 | -8/Scraptown | Found Scrap Suit 4069 | -8/Scraptown | Found Lrg. Botcube 4120 | -8/Scraptown | Lrg. Botcube activated 4138 | -8/Scraptown | Lrg. Botcube completed mutation into legged form, armed with 3 guns. 4785 | -8/Scraptown | Found Scrap Suit 5662 | -8/Scraptown | Met Optimus 5662 | -8/Scraptown | Accepted into 0bPrime 6062 | -8/Scraptown | Civil war broke out across Scraptown 6220 | -8/Scraptown | Lost 16 allies 6250 | -8/Scraptown | Optimus destroyed in the chaos of civil war 6323 | -8/Scraptown | Found Botcube 6354 | -8/Scraptown | Found Lrg. Botcube 6388 | -8/Scraptown | Core integrity fell below 50% 6434 | -8/Scraptown | Lost 12 allies 6488 | -8/Scraptown | Core integrity fell below 20% 6610 | -8/Scraptown | Lost 3 allies 6659 | -8/Scraptown | Botcube activated 6808 | -8/Scraptown | Lost 5 allies 6853 | -8/Scraptown | Destroyed by 4P-9PQ(j) with Overtuned Pulse Rifle Last Messages --------------- Acquired Botcube. Dropped Botcube. Bolt penetrates 0F-Z7S(E). Botcube begins transforming into Mutated Botcube. Mutated Botcube reverted to Botcube. Acquired Ovr. Pulse Rifle. Dropped Ovr. Pulse Rifle. Acquired Aluminum Leg. Dropped Aluminum Leg. Dropped Mak. System Shield. Acquired Lgt. Deuterium Engine. Dropped Lgt. Deuterium Engine. Acquired Mak. Microdissipator Network. Dropped Mak. Microdissipator Network. Acquired Ovr. Titanium Leg. Dropped Ovr. Titanium Leg. Battle Cannon destroyed. Acquired Axe. Core Shielding destroyed. Map ----- +----------------------------------------------------+ | | | ?????????????????????????????????????????????????? | | ?????????????????????????????????????????????????? | | ?????????????????????????????????????????????????? | | ?????????????????????????????????????????????????? | | ?????????????????????????????????????????????????? | | ?????????????????????????????????????????????????? | | ?????????????????????????????????????????????????? | | ?????????????????????????????????????????????????? | | ?????????????????????????????????????????????????? | | ?????????????????????????????????????????????????? | | ?????????????????????????????????????????????????? | | ?????????????????????????????????????????????????? | | ?????????????????????????????????????????????????? | | #############???####?????????????????????????????? | | ""##""|##"""#??## ##????????#???????????????????? | | "!##""|## ]"####= ###### ##??????????????????? | | ! !! #??????????????????? | | =* #??????????????????? | | ################%%! #########????????????????????? | | ???????????????##!!##????????????????????????????? | | ????????????????=[%#?????????????????????????????? | | ??????????????###!!###########???????????????????? | | ??????????????# #!=##""""" ""#???????????????????? | | ??????????????# =[%##"& =!["#???????????????????? | | ?????????????##!"%!!#" &@*&"#???????????????????? | | ??????########"!!=%[#"""""j "#???????????????????? | | #######""""""""*=!=%###### #####?????????????????? | | """""##"" " X "[[=%!%!=[ ! "#?????????????????? | | ! "##"" ""=[%*[! = "#?????????????????? | | "##""" " "=%== ! "#?????????????????? | | "## "!!=!! ] "#?????????????????? | | "## ##!*!!! ![ ;#?????????????????? | | ########### ####%%%*!= "######?????????????????? | | ########### #"###!=[!!"""#########???????????????? | | """""" " =!!=!* ## #???????????????? | | [ [%= [%%%%! ## #???????????????? | | %!*% ! =!=!!## #???????????????? | | * %[! !%## #???????????????? | | !*! = =*! =%!%!##= #???????????????? | | [%!==%!=%[ =%[!! ! #???????????????? | | """""" """"" """" [=*#[! #???????????????? | | """""""""""""""""!* !["## #???????????????? | | ###############""%&= ["## #???????????????? | | ##????????#""![=! ###########???????????????? | | X"#????????#""%[[% "#?? """"""""#????????????? | | " ##????????#""=/=*[!#?? " " " "#????????????? | | "" X"#??????###""==[=!!#? != ""#????????????? | | " #########!#!"=%!=[%## *!% "#????????????? | | =%[%!![!%=%*!!*=! =%[ &"#????????????? | +----------------------------------------------------+ Best States ------------- Heat Dissipation 25 Energy Generation 18 Energy Capacity 310 Matter Stores 300 Matter Capacity 300 Sight Range 21 Terrain Scan Density 10 Core Shielding 20 Evasion (%) 40 Recoil Reduction 2 Item Schematics ----------------- None Robot Schematics ------------------ None Fabricated ------------ Nothing Repaired ---------- Nothing Alien Tech Used ----------------- None Achievements -------------- None Challenges ------------ None Game ------ Seed ArchitectSeismicCarapace Manual? 0 Play Time 00:44:21 Cumulative 116.0 hours Start 2025.08.30 @ 17:11:14 End 2025.08.30 @ 17:56:01 Sessions 1 Manual Loads 0 Difficulty Rogue Special Mode None Game No. 422 Rogue 422 Adventurer 0 Explorer 0 Win Type - Total 0 Types 0/0/0/0/0/0/0/0/0/0 Lore% 45 Gallery% 44 Achievement% 31 Wizard Run 0 Options --------- Layout 2 ASCII 0 Keyboard 0 Movement Mouse Keybinds 0 Fullscreen 2 Font 24/Smallcaps Map View 50x44 Zoom Use 0% Tactical HUD 0 Map Filters NONE Filters NONE Steam 1 RUN: 86f20366-273b-4468-8400-30918eb3e0b7